bitfinex-derivatives/quotes_BTCF0:USTF0_20250510
["timestamp","ask_amount","ask_price","bid_price","bid_amount"]
[1746898714107,0.002,103580.0,103570.0,2.15699983]
[1746898714507,0.0345,103590.0,103580.0,0.1930584]
[1746898714814,0.0345,103590.0,103580.0,1.35473274]
[1746898715314,0.0345,103590.0,103580.0,1.45128113]
[1746898715709,0.0355,103590.0,103580.0,1.45328113]
[1746898716615,0.005,103590.0,103580.0,1.45328113]
[1746898717005,0.0355,103590.0,103580.0,1.45328113]
[1746898718112,0.0355,103590.0,103580.0,1.86958113]
[1746898718320,0.2930212,103600.0,103590.0,0.1930398]
[1746898718511,0.2930212,103600.0,103590.0,1.08521414]
[1746898718512,0.3250212,103600.0,103590.0,1.08521414]
[1746898719016,0.3580212,103600.0,103590.0,1.01527887]
[1746898719208,0.5240212,103600.0,103590.0,0.55957887]
[1746898720209,0.5250212,103600.0,103590.0,0.55957887]
[1746898720603,0.5250212,103600.0,103590.0,1.08685321]
[1746898720804,0.5250212,103600.0,103590.0,1.15275321]
[1746898721218,0.5250212,103600.0,103590.0,0.98627887]
[1746898722617,0.5250212,103600.0,103590.0,1.15275321]
[1746898723911,0.5250212,103600.0,103590.0,0.98627887]
[1746898724214,0.5250212,103600.0,103590.0,1.40257887]
[1746898724414,0.5250212,103600.0,103590.0,1.56905321]
[1746898725019,0.5250212,103600.0,103590.0,1.40257887]
[1746898725220,0.5250212,103600.0,103590.0,1.56905321]
[1746898727317,0.5250212,103600.0,103590.0,1.40257887]
[1746898727522,0.5250212,103600.0,103590.0,1.56905321]
[1746898727921,0.5250212,103600.0,103590.0,1.40257887]
[1746898728122,0.5250212,103600.0,103590.0,1.56905321]
[1746898728314,0.5250212,103600.0,103590.0,1.40257887]
[1746898728511,0.5250212,103600.0,103590.0,1.41720304]
[1746898728916,0.5250212,103600.0,103590.0,1.58367738]
[1746898730111,0.5250212,103600.0,103590.0,1.41720304]
[1746898730320,0.5250212,103600.0,103590.0,1.58367738]
[1746898731322,0.5250212,103600.0,103590.0,1.41720304]
[1746898731520,0.5250212,103600.0,103590.0,1.58367738]
[1746898732020,0.5250212,103600.0,103590.0,1.41720304]
[1746898732225,0.5250212,103600.0,103590.0,1.58367738]
[1746898732720,0.5250212,103600.0,103590.0,1.41720304]
[1746898732919,0.5250212,103600.0,103590.0,1.58367738]
[1746898733429,0.5250212,103600.0,103590.0,1.41720304]
[1746898733628,0.5250212,103600.0,103590.0,1.58367738]
[1746898733930,0.5250212,103600.0,103590.0,1.41720304]
[1746898734134,1.05229554,103600.0,103590.0,0.89396397]
[1746898734424,1.05229554,103600.0,103590.0,0.70092417]
[1746898734727,0.8858212,103600.0,103590.0,0.89396397]
[1746898735232,0.8858212,103600.0,103590.0,0.68396397]
[1746898735419,0.5250212,103600.0,103590.0,0.68396397]
[1746898735624,0.5250212,103600.0,103590.0,0.6693398]
[1746898735923,0.8858212,103600.0,103590.0,0.6693398]
[1746898736124,0.8858212,103600.0,103590.0,0.2530398]
[1746898736325,0.5250212,103600.0,103590.0,0.2530398]
[1746898737328,0.5250212,103600.0,103590.0,0.41951414]
[1746898737840,0.5250212,103600.0,103590.0,0.26776591]
[1746898742437,0.5250212,103600.0,103590.0,0.43424025]
[1746898742639,0.5250212,103600.0,103590.0,0.26776591]
[1746898743439,0.8858212,103600.0,103590.0,0.26776591]
[1746898743840,0.8858212,103600.0,103590.0,0.37701857]
[1746898744139,0.8858212,103600.0,103590.0,0.26776591]
[1746898744736,0.5250212,103600.0,103590.0,0.26776591]
[1746898745041,0.8858212,103600.0,103590.0,0.26776591]
[1746898745232,0.8858212,103600.0,103590.0,0.37701857]
[1746898745633,0.8858212,103600.0,103590.0,0.26776591]
[1746898745835,0.8858212,103600.0,103590.0,0.37701857]
[1746898746848,0.8858212,103600.0,103590.0,0.40751857]
[1746898747645,0.8858212,103600.0,103590.0,0.29826591]
[1746898747836,0.8858212,103600.0,103590.0,0.40751857]
[1746898748348,0.8858212,103600.0,103590.0,0.47011857]
[1746898748544,0.332,103600.0,103590.0,1.13744832]
[1746898748737,0.5250212,103600.0,103590.0,1.13744832]
[1746898749138,0.3590212,103600.0,103590.0,1.02819566]
[1746898749540,0.3590212,103600.0,103590.0,1.13744832]
[1746898749745,0.3590212,103600.0,103590.0,0.77664832]
[1746898750145,0.3590212,103600.0,103590.0,1.13744832]
[1746898750349,0.166,103600.0,103590.0,1.13744832]
[1746898750545,0.166,103600.0,103590.0,1.14688626]
[1746898750746,0.3590212,103600.0,103590.0,1.14688626]
[1746898751143,0.166,103600.0,103590.0,1.14688626]
[1746898751339,0.133,103600.0,103590.0,1.72243892]
[1746898751644,0.133,103600.0,103590.0,1.73353598]
[1746898751844,0.133,103600.0,103590.0,1.89428332]
[1746898752042,0.133,103600.0,103590.0,2.00353598]
[1746898752246,0.6542952,103620.0,103610.0,0.1930025]
[1746898752550,0.82524786,103620.0,103610.0,0.7193025]
[1746898752742,0.82524786,103620.0,103610.0,0.7183025]
[1746898752743,0.7159952,103620.0,103610.0,0.7183025]
[1746898753143,0.8819952,103620.0,103610.0,0.7183025]
[1746898753641,0.9142952,103620.0,103610.0,0.73331201]
[1746898754738,0.9142952,103620.0,103610.0,0.84256467]
[1746898754943,0.5958,103620.0,103610.0,0.83982313]
[1746898755145,0.5958,103620.0,103610.0,0.93612313]
[1746898755146,0.7887839,103620.0,103610.0,0.93612313]
[1746898755644,0.7887839,103620.0,103610.0,1.04537579]
[1746898755849,0.7887839,103620.0,103610.0,0.93612313]
[1746898756356,0.7887839,103620.0,103610.0,1.04537579]
[1746898756539,0.7887839,103620.0,103610.0,0.93612313]
[1746898756743,0.7887839,103620.0,103610.0,1.04537579]
[1746898756943,0.7887839,103620.0,103610.0,0.62907579]
[1746898757150,0.7887839,103620.0,103610.0,0.51982313]
[1746898757547,0.7887839,103620.0,103610.0,0.62907579]
[1746898757853,0.7887839,103620.0,103610.0,0.6862046]
[1746898758051,0.7887839,103620.0,103610.0,0.51982313]
[1746898758255,0.7887839,103620.0,103610.0,0.6862046]
[1746898758749,0.7887839,103620.0,103610.0,0.51982313]
[1746898759553,0.7887839,103620.0,103610.0,0.6862046]
[1746898760050,0.7887839,103620.0,103610.0,1.1025046]
[1746898760553,0.7887839,103620.0,103610.0,0.93612313]
[1746898761051,0.7887839,103620.0,103610.0,1.1025046]
[1746898761453,0.7887839,103620.0,103610.0,0.93612313]
[1746898761952,0.7887839,103620.0,103610.0,1.1025046]
[1746898762250,0.7887839,103620.0,103610.0,0.93612313]
[1746898762559,0.7887839,103620.0,103610.0,1.1025046]
[1746898763151,0.7887839,103620.0,103610.0,0.93612313]
[1746898763660,0.7887839,103620.0,103610.0,1.1025046]
[1746898764149,0.7887839,103620.0,103610.0,0.93612313]
[1746898764949,0.7887839,103620.0,103610.0,1.1025046]
[1746898765156,0.7887839,103620.0,103610.0,0.93612313]
[1746898765750,0.7887839,103620.0,103610.0,1.1025046]
[1746898765955,0.7887839,103620.0,103610.0,0.93612313]
[1746898766848,0.7877839,103620.0,103610.0,1.1045046]
[1746898767046,0.7877839,103620.0,103610.0,0.93812313]
[1746898767249,0.7877839,103620.0,103610.0,0.87292313]
[1746898767448,0.7877839,103620.0,103610.0,0.90342313]
[1746898767661,0.7887839,103620.0,103610.0,0.84382313]
[1746898770052,0.7887839,103620.0,103610.0,1.0102046]
[1746898770350,0.7887839,103620.0,103610.0,0.84382313]
[1746898771060,0.7887839,103620.0,103610.0,0.87642313]
[1746898771249,0.7887839,103620.0,103610.0,1.0428046]
[1746898771861,0.7887839,103620.0,103610.0,1.0741046]
[1746898772156,0.7887839,103620.0,103610.0,0.90772313]
[1746898772353,0.7887839,103620.0,103610.0,1.0741046]
[1746898773164,0.7887839,103620.0,103610.0,0.90772313]
[1746898773361,0.7887839,103620.0,103610.0,1.0741046]
[1746898773664,0.7887839,103620.0,103610.0,0.90772313]
[1746898774161,0.4279839,103620.0,103610.0,1.0741046]
[1746898774663,0.4279839,103620.0,103610.0,0.90772313]
[1746898774856,0.4279839,103620.0,103610.0,1.0741046]
[1746898775160,0.4279839,103620.0,103610.0,1.4349046]
[1746898775547,0.2033,103620.0,103610.0,1.60128607]
[1746898775753,0.0004,103630.0,103620.0,0.1929839]
[1746898775950,0.0004,103630.0,103620.0,1.38474684]
[1746898776157,0.0332,103630.0,103620.0,1.64724684]
[1746898776352,0.0332,103630.0,103620.0,1.41099502]
[1746898776552,0.0332,103630.0,103620.0,1.74375796]
[1746898776752,0.0332,103630.0,103620.0,2.06375796]
[1746898776958,0.0342,103630.0,103620.0,1.81375796]
[1746898777265,0.0342,103630.0,103620.0,1.88875796]
[1746898777759,0.0342,103630.0,103620.0,1.55599502]
[1746898777956,0.2271653,103630.0,103620.0,1.14949502]
[1746898778150,0.2332,103630.0,103620.0,1.31587649]
[1746898778349,0.2332,103630.0,103620.0,1.40949502]
[1746898778563,0.4261653,103630.0,103620.0,1.31587649]
[1746898778750,0.2332,103630.0,103620.0,1.31587649]
[1746898778956,0.2332,103630.0,103620.0,1.36587649]
[1746898779150,0.2332,103630.0,103620.0,1.19949502]
[1746898779356,0.2332,103630.0,103620.0,1.36587649]
[1746898779557,0.2332,103630.0,103620.0,1.19949502]
[1746898779872,0.2332,103630.0,103620.0,1.20049502]
[1746898780065,0.2332,103630.0,103620.0,1.36687649]
[1746898780551,0.2332,103630.0,103620.0,1.21492698]
[1746898780863,0.2332,103630.0,103620.0,1.41492698]
[1746898781056,0.2322,103630.0,103620.0,1.65222698]
[1746898781765,0.2322,103630.0,103620.0,1.81860845]
[1746898781964,0.2322,103630.0,103620.0,1.65222698]
[1746898782160,0.2322,103630.0,103620.0,1.81860845]
[1746898782367,0.2322,103630.0,103620.0,2.04860845]
[1746898782666,0.2322,103630.0,103620.0,2.21498992]
[1746898782964,0.2322,103630.0,103620.0,1.97860845]
[1746898783156,0.0662,103630.0,103620.0,1.74860845]
[1746898783361,0.0662,103630.0,103620.0,2.07860845]
[1746898783967,0.0662,103630.0,103620.0,2.24498992]
[1746898785263,0.2322,103630.0,103620.0,2.24498992]
[1746898785459,0.2322,103630.0,103620.0,1.91498992]
[1746898785658,0.2322,103630.0,103620.0,1.71222698]
[1746898785862,0.2322,103630.0,103620.0,2.04498992]
[1746898786061,0.1992,103630.0,103620.0,2.04498992]
[1746898786260,0.0332,103630.0,103620.0,2.04498992]
[1746898786972,0.0332,103630.0,103620.0,2.24498992]
[1746898787163,0.0332,103630.0,103620.0,2.41098992]
[1746898787962,0.0342,103630.0,103620.0,2.41498992]
[1746898788163,0.0352,103630.0,103620.0,2.24898992]
[1746898791178,0.0024,103630.0,103620.0,2.24898992]
[1746898791378,0.0024,103630.0,103620.0,2.49834992]
[1746898791868,0.035,103630.0,103620.0,2.49834992]
[1746898792477,0.035,103630.0,103620.0,2.16558698]
[1746898792773,0.035,103630.0,103620.0,2.33196845]
[1746898793070,0.035,103630.0,103620.0,2.49834992]
[1746898794376,0.0346,103630.0,103620.0,2.49834992]
[1746898794875,0.0346,103630.0,103620.0,2.17567264]
[1746898795177,0.0346,103630.0,103620.0,2.50843558]
[1746898796075,0.03905641,103640.0,103630.0,0.1929653]
[1746898796373,0.03905641,103640.0,103630.0,1.24384677]
[1746898796576,0.03905641,103640.0,103630.0,1.48384677]
[1746898796776,0.03905641,103640.0,103630.0,1.58033926]
[1746898797277,0.03905641,103640.0,103630.0,1.58133926]
[1746898797577,0.03905641,103640.0,103630.0,1.58333926]
[1746898798476,0.03905641,103640.0,103630.0,1.34333926]
[1746898799285,0.07025641,103640.0,103630.0,1.34333926]
[1746898799677,0.07025641,103640.0,103630.0,1.56333926]
[1746898800581,0.07025641,103640.0,103630.0,1.57342889]
[1746898800781,0.07025641,103640.0,103630.0,1.57342886]
[1746898800976,0.0353,103650.0,103640.0,0.1929467]
[1746898801190,0.0079389,103650.0,103640.0,2.16410964]
[1746898801383,0.0332,103660.0,103650.0,0.1929281]
[1746898801587,0.0332,103660.0,103650.0,1.70729104]
[1746898801780,0.0323,103670.0,103660.0,0.1929095]
[1746898801977,0.0655,103670.0,103660.0,1.19139097]
[1746898802280,0.004,103680.0,103670.0,0.1928908]
[1746898802482,0.0363,103680.0,103670.0,1.3525908]
[1746898802684,0.0363,103680.0,103670.0,1.44905537]
[1746898802887,0.0363,103680.0,103670.0,1.61543684]
[1746898803089,0.2023,103680.0,103670.0,1.61343684]
[1746898803290,0.2023,103680.0,103670.0,1.62299971]
[1746898803483,0.2023,103680.0,103670.0,1.44705537]
[1746898803791,0.2023,103680.0,103670.0,1.61343684]
[1746898804088,0.2023,103680.0,103670.0,1.61543684]
[1746898804477,0.4280722,103680.0,103670.0,1.61643684]
[1746898804676,0.4280722,103680.0,103670.0,1.41825537]
[1746898804876,0.95525367,103680.0,103670.0,0.7393]
[1746898805087,0.95525367,103680.0,103670.0,0.9321908]
[1746898805283,0.7888722,103680.0,103670.0,0.9321908]
[1746898805490,0.8196722,103680.0,103670.0,1.19502753]
[1746898805691,0.8196722,103680.0,103670.0,1.06094606]
[1746898805984,0.62525367,103680.0,103670.0,0.56716831]
[1746898806188,0.1929095,103660.0,103650.0,0.4693699]
[1746898806391,0.5537095,103660.0,103650.0,0.5793699]
[1746898806591,0.5537095,103660.0,103650.0,0.67582516]
[1746898806592,0.6493095,103660.0,103650.0,0.67582516]
[1746898807089,1.07816297,103660.0,103650.0,0.29]
[1746898807388,1.1617815,103660.0,103650.0,0.29]
[1746898807584,1.32916297,103660.0,103650.0,0.4899281]
[1746898808395,1.07916297,103660.0,103650.0,0.067]
[1746898808593,1.1627815,103660.0,103650.0,0.0171]
[1746898808979,1.33016297,103660.0,103650.0,0.0221]
[1746898809498,1.1637815,103660.0,103650.0,0.0221]
[1746898809678,1.33016297,103660.0,103650.0,0.0221]
[1746898810092,1.32816297,103660.0,103650.0,0.0171]
[1746898810391,1.33855759,103660.0,103650.0,0.0241]
[1746898810996,0.8163095,103660.0,103650.0,0.2170281]
[1746898811494,0.98269097,103660.0,103650.0,0.2170281]
[1746898811690,0.8163095,103660.0,103650.0,0.2170281]
[1746898812493,0.8163095,103660.0,103650.0,0.2470281]
[1746898816399,0.98269097,103660.0,103650.0,0.2470281]
[1746898816997,0.98269097,103660.0,103650.0,0.0241]
[1746898817396,0.8163095,103660.0,103650.0,0.0241]
[1746898817691,0.98269097,103660.0,103650.0,0.0241]
[1746898817897,0.98269097,103660.0,103650.0,0.2170281]
[1746898818097,0.8163095,103660.0,103650.0,0.2170281]
[1746898818493,0.98269097,103660.0,103650.0,0.2170281]
[1746898819387,0.8163095,103660.0,103650.0,0.2170281]
[1746898819597,0.98269097,103660.0,103650.0,0.2170281]
[1746898819789,0.8163095,103660.0,103650.0,0.2170281]
[1746898820287,0.98269097,103660.0,103650.0,0.2170281]
[1746898820900,0.8163095,103660.0,103650.0,0.2170281]
[1746898821100,0.98269097,103660.0,103650.0,0.23211255]
[1746898821303,0.8163095,103660.0,103650.0,0.03918445]
[1746898821605,0.98269097,103660.0,103650.0,0.23211255]
[1746898823399,0.8163095,103660.0,103650.0,0.03918445]
[1746898823710,0.98269097,103660.0,103650.0,0.03918445]
[1746898823902,0.8163095,103660.0,103650.0,0.03918445]
[1746898824398,0.98269097,103660.0,103650.0,0.03618445]
[1746898824601,0.98269097,103660.0,103650.0,0.03818445]
[1746898824995,0.98169097,103660.0,103650.0,0.03418445]
[1746898825187,0.98269097,103660.0,103650.0,0.03518445]
[1746898825691,0.98369097,103660.0,103650.0,0.03718445]
[1746898825897,1.49654444,103660.0,103650.0,0.03918445]
[1746898826201,1.33016297,103660.0,103650.0,0.02208445]
[1746898826400,1.33016297,103660.0,103650.0,0.007]
[1746898826596,0.1929281,103650.0,103640.0,0.07718]
[1746898826805,0.78110957,103650.0,103640.0,0.11718]
[1746898826990,0.7112121,103650.0,103640.0,0.11718]
[1746898827189,1.04359357,103650.0,103640.0,0.11718]
[1746898827404,0.8772121,103650.0,103640.0,0.11718]
[1746898827595,1.04359357,103650.0,103640.0,0.11718]
[1746898827797,1.04459357,103650.0,103640.0,0.12318]
[1746898828002,0.8782121,103650.0,103640.0,0.12318]
[1746898828206,1.04459357,103650.0,103640.0,0.12318]
[1746898828502,1.04559357,103650.0,103640.0,0.12418]
[1746898830907,1.04559357,103650.0,103640.0,0.13926624]
[1746898831505,1.04559357,103650.0,103640.0,0.12418]
[1746898831801,1.21197504,103650.0,103640.0,0.12418]
[1746898833504,1.11549104,103650.0,103640.0,0.12418]
[1746898833803,1.36865104,103650.0,103640.0,0.12418]
[1746898834003,1.46513504,103650.0,103640.0,0.12418]
[1746898834202,1.46513504,103650.0,103640.0,0.08418]
[1746898834506,1.46513504,103650.0,103640.0,0.007]
[1746898836206,1.1316521,103650.0,103640.0,0.007]
[1746898836404,1.29803357,103650.0,103640.0,0.0381]
[1746898836599,1.46441504,103650.0,103640.0,0.007]
[1746898836798,1.1316521,103650.0,103640.0,0.007]
[1746898837202,1.29803357,103650.0,103640.0,0.007]
[1746898837604,1.1316521,103650.0,103640.0,0.007]
[1746898837802,1.29803357,103650.0,103640.0,0.007]
[1746898838105,1.1316521,103650.0,103640.0,0.007]
[1746898838717,1.46441504,103650.0,103640.0,0.007]
[1746898839411,1.1316521,103650.0,103640.0,0.007]
[1746898839603,1.29803357,103650.0,103640.0,0.0394]
[1746898840603,1.1316521,103650.0,103640.0,0.0394]
[1746898840804,1.29803357,103650.0,103640.0,0.0394]
[1746898841415,1.1316521,103650.0,103640.0,0.0394]
[1746898841711,1.29803357,103650.0,103640.0,0.0394]
[1746898842604,1.1316521,103650.0,103640.0,0.0394]
[1746898842911,1.29803357,103650.0,103640.0,0.0394]
[1746898843107,1.04559357,103650.0,103640.0,0.0394]
[1746898843304,0.7827281,103650.0,103640.0,0.31496895]
[1746898843814,0.94910957,103650.0,103640.0,0.31496895]
[1746898844804,0.94910957,103650.0,103640.0,0.32979902]
[1746898845214,0.7827281,103650.0,103640.0,0.13685232]
[1746898845415,0.94910957,103650.0,103640.0,0.13685232]
[1746898846012,0.7827281,103650.0,103640.0,0.32979902]
[1746898846218,0.94910957,103650.0,103640.0,0.32979902]
[1746898846611,0.94910957,103650.0,103640.0,0.13685232]
[1746898849912,0.94810957,103650.0,103640.0,0.13085232]
[1746898850113,0.94810957,103650.0,103640.0,0.13485232]
[1746898851018,0.7817281,103650.0,103640.0,0.13485232]
[1746898851211,0.7817281,103650.0,103640.0,0.33779902]
[1746898851709,0.94810957,103650.0,103640.0,0.14468086]
[1746898852423,0.7817281,103650.0,103640.0,0.14468086]
[1746898852621,0.94810957,103650.0,103640.0,0.14468086]
[1746898853121,0.94810957,103650.0,103640.0,0.33762756]
[1746898853320,0.94810957,103650.0,103640.0,0.14468086]
[1746898854122,0.7817281,103650.0,103640.0,0.14468086]
[1746898854521,0.94810957,103650.0,103640.0,0.14468086]
[1746898855516,1.11449104,103650.0,103640.0,0.14468086]
[1746898855718,1.11449104,103650.0,103640.0,0.06205861]
[1746898855912,1.11449104,103650.0,103640.0,0.02983007]
[1746898856223,0.1929467,103640.0,103630.0,0.11553]
[1746898856422,0.78142817,103640.0,103630.0,0.15335225]
[1746898856624,0.81472817,103640.0,103630.0,0.13402225]
[1746898857126,0.98072817,103640.0,103630.0,0.13402225]
[1746898857324,0.98172817,103640.0,103630.0,0.13902225]
[1746898857627,0.98272817,103640.0,103630.0,0.14502225]
[1746898858319,0.8163467,103640.0,103630.0,0.14502225]
[1746898858716,0.98272817,103640.0,103630.0,0.14502225]
[1746898859321,0.8163467,103640.0,103630.0,0.14502225]
[1746898859521,0.98272817,103640.0,103630.0,0.14502225]
[1746898861726,0.8163467,103640.0,103630.0,0.14502225]
[1746898861923,0.98272817,103640.0,103630.0,0.14502225]
[1746898864627,0.98272817,103640.0,103630.0,0.08162225]
[1746898864927,0.98272817,103640.0,103630.0,0.04882225]
[1746898867029,0.8163467,103640.0,103630.0,0.04882225]
[1746898867229,0.98272817,103640.0,103630.0,0.04882225]
[1746898867731,0.1929653,103630.0,103620.0,0.08494]
[1746898867924,1.02522677,103630.0,103620.0,0.02934]
[1746898868125,1.02522677,103630.0,103620.0,0.02485449]
[1746898868326,1.19122677,103630.0,103620.0,0.04267674]
[1746898868932,1.19122677,103630.0,103620.0,0.07547674]
[1746898869125,1.19222677,103630.0,103620.0,0.07547674]
[1746898869526,1.19222677,103630.0,103620.0,0.02485449]
[1746898869833,1.19322677,103630.0,103620.0,0.03085449]
[1746898870037,1.0268453,103630.0,103620.0,0.06365449]
[1746898870331,1.19322677,103630.0,103620.0,0.0488]
[1746898870723,1.19322677,103630.0,103620.0,0.0811]
[1746898874033,1.19322677,103630.0,103620.0,0.09598537]
[1746898875327,1.0268453,103630.0,103620.0,0.09598537]
[1746898875526,1.19322677,103630.0,103620.0,0.09598537]
[1746898875924,1.16664294,103630.0,103610.0,0.05024]
[1746898876124,0.1930212,103600.0,103590.0,0.46025772]
[1746898876328,0.1930212,103600.0,103590.0,0.35705772]
[1746898876329,0.5538212,103600.0,103590.0,0.35705772]
[1746898876536,0.81440267,103600.0,103590.0,0.37487997]
[1746898877032,1.17520267,103600.0,103590.0,0.15487997]
[1746898877233,1.34120267,103600.0,103590.0,0.14487997]
[1746898877736,1.34120267,103600.0,103590.0,0.11177997]
[1746898878440,1.34120267,103600.0,103590.0,0.14487997]
[1746898878734,1.34220267,103600.0,103590.0,0.14487997]
[1746898879134,1.1758212,103600.0,103590.0,0.14487997]
[1746898879324,1.35272666,103600.0,103590.0,0.14487997]
[1746898880243,1.18634519,103600.0,103590.0,0.14487997]
[1746898880536,1.35272666,103600.0,103590.0,0.14487997]
[1746898880734,1.18634519,103600.0,103590.0,0.14487997]
[1746898880940,1.35272666,103600.0,103590.0,0.14487997]
[1746898881241,1.18634519,103600.0,103590.0,0.14487997]
[1746898881534,1.53302666,103600.0,103590.0,0.14487997]
[1746898881735,1.53302666,103600.0,103590.0,0.17567997]
[1746898882033,1.56302666,103600.0,103590.0,0.11177997]
[1746898882236,1.39664519,103600.0,103590.0,0.11177997]
[1746898882431,1.56302666,103600.0,103590.0,0.11177997]
[1746898882634,1.39664519,103600.0,103590.0,0.14447997]
[1746898882930,1.39702666,103600.0,103590.0,0.17697997]
[1746898883126,1.39664519,103600.0,103590.0,0.17697997]
[1746898883330,1.56302666,103600.0,103590.0,0.17697997]
[1746898883730,1.3597612,103600.0,103590.0,0.37001977]
[1746898884131,0.7541,103600.0,103590.0,0.45640124]
[1746898884339,0.9471212,103600.0,103590.0,0.45640124]
[1746898884531,0.2255212,103600.0,103590.0,0.45640124]
[1746898884831,0.2255212,103600.0,103590.0,0.29001977]
[1746898885336,0.1950212,103600.0,103590.0,0.71081977]
[1746898885535,0.1950212,103600.0,103590.0,0.35001977]
[1746898885738,0.1950212,103600.0,103590.0,0.71081977]
[1746898885934,0.5558212,103600.0,103590.0,0.35001977]
[1746898886132,0.5558212,103600.0,103590.0,0.51601977]
[1746898886331,0.5558212,103600.0,103590.0,0.45601977]
[1746898886533,0.5881212,103600.0,103590.0,0.45601977]
[1746898886736,0.5881212,103600.0,103590.0,0.46601977]
[1746898887039,0.5881212,103600.0,103590.0,0.45601977]
[1746898887826,0.5881212,103600.0,103590.0,0.47601977]
[1746898888029,0.2273212,103600.0,103590.0,0.83681977]
[1746898888540,0.1950212,103600.0,103590.0,1.35441533]
[1746898888930,0.1950212,103600.0,103590.0,1.18803386]
[1746898889132,0.1950212,103600.0,103590.0,1.35441533]
[1746898889844,0.1950212,103600.0,103590.0,0.99361533]
[1746898890031,0.2277212,103600.0,103590.0,0.82723386]
[1746898890334,0.2277212,103600.0,103590.0,0.65123386]
[1746898891436,0.2277212,103600.0,103590.0,1.01203386]
[1746898891740,0.39410267,103600.0,103590.0,0.64123386]
[1746898891941,0.75490267,103600.0,103590.0,0.64123386]
[1746898892241,0.5885212,103600.0,103590.0,0.64123386]
[1746898893132,0.78770267,103600.0,103590.0,0.64123386]
[1746898893333,0.6213212,103600.0,103590.0,0.64123386]
[1746898893539,0.5885212,103600.0,103590.0,0.64123386]
[1746898893739,0.5875212,103600.0,103590.0,0.64123386]
[1746898893942,0.75890267,103600.0,103590.0,0.64123386]
[1746898894142,0.76090267,103600.0,103590.0,0.64123386]
[1746898894645,0.5945212,103600.0,103590.0,0.64123386]
[1746898894843,0.5925212,103600.0,103590.0,0.64123386]
[1746898895344,0.5875212,103600.0,103590.0,0.64123386]
[1746898895534,0.5885212,103600.0,103590.0,0.64123386]
[1746898896341,0.75490267,103600.0,103590.0,0.54470411]
[1746898896542,0.82060267,103600.0,103590.0,0.54470411]
[1746898897748,0.82060267,103600.0,103590.0,0.31916431]
[1746898898134,0.82060267,103600.0,103590.0,0.26864206]
[1746898898754,0.83515026,103600.0,103590.0,0.26864206]
[1746898899143,0.98660267,103600.0,103590.0,0.04864206]
[1746898899447,0.8202212,103600.0,103590.0,0.04864206]
[1746898899647,0.98660267,103600.0,103590.0,0.04864206]
[1746898900042,0.98760267,103600.0,103590.0,0.04864206]
[1746898900843,1.23000267,103600.0,103590.0,0.04864206]
[1746898901044,1.23000267,103600.0,103590.0,0.03395772]
[1746898903649,1.24414777,103600.0,103590.0,0.03395772]
[1746898904355,1.24414777,103600.0,103590.0,0.04877087]
[1746898905654,1.0777663,103600.0,103590.0,0.04877087]
[1746898905846,1.24414777,103600.0,103590.0,0.04877087]
[1746898910850,1.0777663,103600.0,103590.0,0.04877087]
[1746898911048,1.24414777,103600.0,103590.0,0.04877087]
[1746898911847,0.1930584,103580.0,103570.0,0.02]
[1746898912046,0.86504437,103580.0,103570.0,0.23782225]
[1746898912244,1.00761287,103580.0,103570.0,0.23782225]
[1746898912446,0.8412314,103580.0,103570.0,0.30182225]
[1746898912958,1.00761287,103580.0,103570.0,0.30182225]
[1746898913143,0.8422314,103580.0,103570.0,0.30182225]
[1746898913349,1.00861287,103580.0,103570.0,0.30182225]
[1746898913548,0.8422314,103580.0,103570.0,0.30182225]
[1746898913759,1.00761287,103580.0,103570.0,0.30182225]
[1746898913955,1.00861287,103580.0,103570.0,0.30182225]
[1746898914258,1.01061287,103580.0,103570.0,0.30182225]
[1746898914655,0.8442314,103580.0,103570.0,0.30182225]
[1746898914851,1.01061287,103580.0,103570.0,0.30182225]
[1746898915056,0.8442314,103580.0,103570.0,0.30182225]
[1746898915950,1.01061287,103580.0,103570.0,0.30182225]
[1746898916145,0.8442314,103580.0,103570.0,0.30182225]
[1746898921871,0.8442314,103580.0,103570.0,0.33492225]
[1746898922383,1.01061287,103580.0,103570.0,0.33492225]
[1746898923979,1.01061287,103580.0,103570.0,0.34980293]
[1746898924184,1.37141287,103580.0,103570.0,0.19091408]
[1746898924372,1.37141287,103580.0,103570.0,0.01488068]
[1746898924977,1.37141287,103580.0,103570.0,8e-08]
[1746898925278,0.1930771,103570.0,103560.0,0.00395887]
[1746898925474,0.78195857,103570.0,103560.0,0.04178112]
[1746898926180,0.94795857,103570.0,103560.0,0.04178112]
[1746898926777,0.94895857,103570.0,103560.0,0.04178112]
[1746898927181,0.78295857,103570.0,103560.0,0.04178112]
[1746898927381,0.78295857,103570.0,103560.0,0.10568112]
[1746898927776,0.78495857,103570.0,103560.0,0.10568112]
[1746898928782,0.6185771,103570.0,103560.0,0.10568112]
[1746898928982,0.78495857,103570.0,103560.0,0.10568112]
[1746898929378,0.79443338,103570.0,103560.0,0.10568112]
[1746898931875,0.82723338,103570.0,103560.0,0.10568112]
[1746898932482,0.66085191,103570.0,103560.0,0.10568112]
[1746898932688,0.82723338,103570.0,103560.0,0.10568112]
[1746898933487,0.66085191,103570.0,103560.0,0.10568112]
[1746898934086,0.82723338,103570.0,103560.0,0.10568112]
[1746898936090,0.82723338,103570.0,103560.0,0.07438112]
[1746898937390,0.82723338,103570.0,103560.0,0.08904812]
[1746898940586,0.66085191,103570.0,103560.0,0.08904812]
[1746898940983,0.82723338,103570.0,103560.0,0.11934812]
[1746898941184,0.66085191,103570.0,103560.0,0.11934812]
[1746898941384,0.82723338,103570.0,103560.0,0.11934812]
[1746898941784,0.66085191,103570.0,103560.0,0.11934812]
[1746898942095,1.05343338,103570.0,103560.0,0.28534812]
[1746898943190,1.05343338,103570.0,103560.0,0.11934812]
[1746898944590,0.1930957,103560.0,103550.0,0.0328]
[1746898944786,0.81717717,103560.0,103550.0,0.0814]
[1746898945182,0.98355864,103560.0,103550.0,0.05]
[1746898945795,0.98455864,103560.0,103550.0,0.05]
[1746898946198,1.15055864,103560.0,103550.0,0.05]
[1746898946493,0.8177957,103560.0,103550.0,0.05]
[1746898946693,0.8187957,103560.0,103550.0,0.05]
[1746898946896,1.15155864,103560.0,103550.0,0.05]
[1746898947991,1.15155864,103560.0,103550.0,0.0246406]
[1746898948198,0.193133,103540.0,103530.0,0.07396001]
[1746898948384,0.72031447,103540.0,103530.0,0.29396001]
[1746898948589,0.81531447,103540.0,103530.0,0.29396001]
[1746898948790,0.81531447,103540.0,103530.0,0.38586001]
[1746898949391,0.649933,103540.0,103530.0,0.38586001]
[1746898949597,0.619533,103540.0,103530.0,0.38586001]
[1746898949800,0.620533,103540.0,103530.0,0.38586001]
[1746898949984,0.620533,103540.0,103530.0,0.40002425]
[1746898950992,0.78691447,103540.0,103530.0,0.40002425]
[1746898951901,0.587233,103540.0,103530.0,0.59317595]
[1746898952193,0.587233,103540.0,103530.0,0.56640572]
[1746898952395,0.587233,103540.0,103530.0,0.40002425]